fUSD/lending_fUSD_20250708
["ID","MTS","AMOUNT","RATE_DAILY","PERIOD"]
[370396701,1751995837670,-14260.67421231,0.0002,2]
[370396704,1751995837689,-427.42674728,0.0002,2]
[370396710,1751995837740,-329.90115524,0.0002,2]
[370396719,1751995837815,-284.105,0.0002,2]
[370396893,1751995839654,-316.12052858,0.0002,2]
[370396896,1751995839666,-1330.85394124,0.0002,2]
[370396899,1751995839678,-1380.63613855,0.0002,2]
[370396902,1751995839689,-164.94287577,0.000208,2]
[370396905,1751995839699,-2753.17627708,0.000209,30]
[370397130,1751995841008,-707.62277508,0.000209,30]
[370397132,1751995841019,-2227.64011201,0.00021,4]
[370397134,1751995841031,-2227.64011198,0.00021,4]
[370397136,1751995841041,-2227.64011198,0.00021,4]
[370397137,1751995841051,-2227.64011198,0.00021,4]
[370397138,1751995841061,-4768.56744753,0.0002101,2]
[370397139,1751995841071,-2227.64011198,0.00021279,5]
[370397140,1751995841081,-8793.98900449,0.0002152,2]
[370397142,1751995841090,-2227.64011198,0.00021624,5]
[370397144,1751995841100,-901.74,0.00021906,2]
[370397146,1751995841109,-3280.6,0.0002192,2]
[370397148,1751995841118,-151.25,0.00021944,2]
[370397150,1751995841127,-2227.64011198,0.00021969,6]
[370397152,1751995841136,-151.25,0.0002198,2]
[370397154,1751995841146,-150.0,0.00022,2]
[370397156,1751995841155,-157.0,0.00022,2]
[370397158,1751995841164,-151.25,0.00022017,2]
[370397160,1751995841172,-151.25,0.00022054,2]
[370397162,1751995841183,-151.25,0.0002209,2]
[370397164,1751995841192,-151.25,0.00022127,2]
[370397166,1751995841201,-151.25,0.00022163,2]
[370397168,1751995841210,-151.0,0.00022264,2]
[370397170,1751995841220,-2227.64011198,0.00022314,7]
[370397172,1751995841229,-150.0,0.00022414,2]
[370397174,1751995841238,-150.0,0.00022414,2]
[370397176,1751995841247,-150.0,0.0002247,2]
[370397178,1751995841258,-207.4,0.00022529,2]
[370397180,1751995841267,-2500.0,0.00022542,2]
[370397182,1751995841276,-1000.0,0.0002255,2]
[370397183,1751995841286,-250.0,0.00022585,2]
[370397185,1751995841295,-200.0,0.00022598,2]
[370397187,1751995841305,-2227.64011198,0.00022659,7]
[370397189,1751995841314,-1500.0,0.00022684,2]
[370397191,1751995841323,-509.06787383,0.0002271,2]
[370397193,1751995841333,-1009.96,0.00022714,2]
[370397195,1751995841342,-180.94,0.00022714,2]
[370397197,1751995841352,-200.0,0.00022722,7]
[370397199,1751995841361,-1602.78,0.00022725,2]
[370397201,1751995841371,-2751.0,0.00022733,2]
[370397203,1751995841380,-166.76489018,0.00022889,2]
[370397205,1751995841390,-162.75829643,0.00022889,2]
[370397207,1751995841400,-150.0,0.0002294,2]
[370397209,1751995841409,-2228.33,0.00022955,2]
[370397211,1751995841419,-718.12,0.00022968,2]
[370397213,1751995841428,-817.53,0.00022981,2]
[370397215,1751995841439,-277.34,0.00022989,7]
[370397217,1751995841448,-200.0,0.00023,2]
[370397219,1751995841458,-2227.64011198,0.00023003,8]
[370397221,1751995841467,-157.0,0.00023014,7]
[370397223,1751995841476,-151.0,0.00023071,2]
[370397225,1751995841485,-200.0,0.00023091,2]
[370397227,1751995841494,-162.58281939,0.00023091,2]
[370397229,1751995841504,-151.0,0.00023091,2]
[370397231,1751995841513,-151.0,0.00023091,2]
[370397233,1751995841522,-151.0,0.00023091,2]
[370397235,1751995841532,-151.0,0.00023091,2]
[370397237,1751995841541,-151.0,0.00023091,2]
[370397239,1751995841550,-151.0,0.00023091,2]
[370397241,1751995841559,-151.0,0.00023091,2]
[370397243,1751995841568,-151.0,0.00023091,2]
[370397245,1751995841577,-151.0,0.00023091,2]
[370397247,1751995841586,-151.0,0.00023091,2]
[370397249,1751995841595,-151.0,0.00023091,2]
[370397251,1751995841605,-151.0,0.00023091,2]
[370397253,1751995841614,-151.0,0.00023091,2]
[370397255,1751995841623,-5124.07,0.00023105,2]
[370397257,1751995841633,-5000.0,0.0002317,2]
[370397259,1751995841643,-666.0,0.00023172,2]
[370397261,1751995841653,-188.28,0.0002318,2]
[370397263,1751995841662,-377.32,0.00023182,2]
[370397265,1751995841672,-1419.24,0.00023212,2]
[370397268,1751995841682,-163.86,0.0002327,2]
[370397269,1751995841691,-2227.64011198,0.00023348,9]
[370397271,1751995841700,-814.16,0.00023364,2]
[370397274,1751995841711,-1703.89008528,0.000234,2]
[370397275,1751995841721,-150.0,0.0002341,2]
[370397277,1751995841730,-200.0,0.000235,2]
[370397279,1751995841740,-250.0,0.00023505,2]
[370397281,1751995841749,-2500.0,0.00023505,2]
[370397283,1751995841759,-250.0,0.00023505,2]
[370397285,1751995841769,-168.0,0.00023509,2]
[370397287,1751995841779,-162.75829643,0.00023527,2]
[370397289,1751995841788,-162.22,0.0002368,2]
[370397290,1751995841798,-2227.64011198,0.00023693,9]
[370397291,1751995841807,-162.22,0.00023701,2]
[370397292,1751995841817,-162.22,0.00023723,2]
[370397294,1751995841827,-162.22,0.00023744,2]
[370397296,1751995841836,-162.22,0.00023766,2]
[370397298,1751995841846,-162.22,0.00023787,2]
[370397300,1751995841855,-166.76489018,0.00023795,2]
[370397302,1751995841865,-162.22,0.00023809,2]
[370397304,1751995841874,-162.22,0.0002383,2]
[370397306,1751995841883,-423.88,0.00023836,2]
[370397308,1751995841893,-162.22,0.00023852,2]
[370397310,1751995841902,-162.22,0.00023873,2]
[370397312,1751995841912,-151.0,0.00023878,2]
[370397314,1751995841924,-150.0,0.0002388,2]
[370397316,1751995841935,-162.22,0.00023895,2]
[370397318,1751995841944,-215.0738,0.00023898,2]
[370397320,1751995841954,-1722.9981,0.000239,2]
[370397322,1751995841963,-162.22,0.00023916,2]
[370397324,1751995841972,-225.0,0.00023955,2]
[370397326,1751995841982,-344.42,0.00023978,2]
[370397328,1751995841991,-5104.69,0.00023999,2]
[370397329,1751995842000,-191.65,0.00023999,2]
[370397331,1751995842010,-191.65,0.00023999,2]
[370397333,1751995842019,-60297.14988144,0.00024,2]
[370397335,1751995842029,-993.25584362,0.00024,2]
[370397337,1751995842038,-8147.06239677,0.00024,2]
[370397339,1751995842047,-8521.88539787,0.00024,5]
[370397341,1751995842057,-9999.0,0.00024,2]
[370397343,1751995842066,-15366.0,0.00024,2]
[370397346,1751995842075,-2227.64011198,0.00024038,10]
[370397348,1751995842085,-164.22,0.00024097,2]
[370397350,1751995842094,-2846.25374948,0.000241,2]
[370397352,1751995842104,-747.505211,0.00024163,4]
[370397354,1751995842113,-162.75829643,0.00024166,2]
[370397356,1751995842122,-410.54685881,0.0002421,2]
[370397357,1751995842131,-3598.2834973,0.0002421,2]
[370397359,1751995842141,-180.94,0.00024229,2]
[370397361,1751995842150,-1049.37,0.00024315,2]
[370397363,1751995842160,-812.39,0.00024325,2]
[370397365,1751995842170,-512.49,0.00024325,2]
[370397367,1751995842179,-450.56,0.00024341,2]
[370397370,1751995842192,-150.0,0.0002435,2]
[370397372,1751995842202,-2227.64011198,0.00024383,11]
[370397374,1751995842211,-700.0,0.000244,8]
[370397376,1751995842221,-167.34171885,0.00024453,2]
[370397378,1751995842230,-228.9543,0.00024457,2]
[370397379,1751995842241,-273.272,0.00024457,2]
[370397380,1751995842250,-450.56,0.00024463,2]
[370397381,1751995842259,-151.0,0.0002449,2]
[370397382,1751995842268,-1400.0,0.000245,8]
[370397383,1751995842277,-252.37956774,0.00024504,2]
[370397384,1751995842287,-249.6270074,0.00024507,2]
[370397385,1751995842297,-249.6270074,0.00024512,2]
[370397386,1751995842307,-2072.51557344,0.0002452,2]
[370397387,1751995842317,-2072.51557344,0.00024533,2]
[370397388,1751995842326,-15194.42840978,0.00024535,2]
[370397389,1751995842336,-1049.37,0.0002454,2]
[370397390,1751995842346,-1150.78271398,0.00024546,2]
[370397391,1751995842356,-1361.25107062,0.00024547,2]
[370397392,1751995842365,-422204.85199628,0.0002455,2]
[370397437,1751995843476,-837.09214054,0.00019,30]
[370397438,1751995843485,-276.83125946,0.000239,2]
[370397439,1751995843544,-321.0173159,0.000239,2]
[370397440,1751995843553,-493.36559891,0.0002455,2]
[370397441,1751995843564,-3245.65220259,0.0002455,2]
[370397442,1751995843602,-650.20680584,0.0002455,2]
[370397444,1751995845525,-5297.87022417,0.00024,2]
[370397445,1751995845580,-628.50328692,0.00024,2]
[370397446,1751995845591,-496.84672851,0.00024,2]
[370397447,1751995845603,-1225.0,0.00024,2]
[370397448,1751995845614,-3660.79,0.00024,2]
[370397449,1751995845635,-8356.9897604,0.00024,2]
[370397450,1751995845644,-13263.32020701,0.0002455,2]
[370397451,1751995845742,-21821.556,0.0002455,2]
[370397452,1751995845754,-24323.44907712,0.0002455,2]
[370397453,1751995845764,-2480.464,0.00024553,2]
[370397454,1751995845773,-1000.0,0.00024553,2]
[370397455,1751995845783,-166.24087641,0.00024553,2]
[370397456,1751995845792,-160.0,0.00024556,2]
[370397457,1751995845801,-837.09214054,0.00024556,2]
[370397458,1751995845811,-210.34477682,0.00024556,2]
[370397459,1751995845820,-5000.0,0.00024557,2]
[370397460,1751995845829,-157.59991505,0.00024557,2]
[370397461,1751995845839,-1150.78271398,0.00024575,2]
[370397462,1751995845848,-1989.20925008,0.00024579,2]
[370397463,1751995845858,-1989.20925008,0.00024582,2]
[370397464,1751995845867,-450.56,0.00024585,2]
[370397465,1751995845876,-2200.0,0.000246,8]
[370397466,1751995845886,-200.0,0.000246,2]
[370397467,1751995845895,-2622.99356325,0.00024611,2]
[370397468,1751995845905,-2622.99356325,0.0002462,2]
[370397469,1751995845914,-200.0,0.00024627,2]
[370397470,1751995845925,-12152.47,0.0002463,2]
[370397471,1751995845935,-3862.882,0.00024632,7]
[370397472,1751995845944,-246.263,0.00024632,7]
[370397473,1751995845954,-218.03841409,0.00024638,2]
[370397474,1751995845963,-23043.91732088,0.00024642,2]
[370397478,1751995845991,-17573.29541644,0.00024642,2]
[370397480,1751995846014,-606.0,0.00024642,2]
[370397485,1751995909452,152.0,0.0003013,120]
[370397486,1751995949684,1000.0,0.00030136,120]
[370397487,1751995965164,1000.0,0.00030136,120]
[370397488,1751995971544,200.0,0.0003013,120]
[370397489,1751995978562,1000.0,0.00030136,120]
[370397495,1751996045976,600.0,0.00027397,120]
[370397496,1751996046198,600.0,0.00027397,120]
[370397497,1751996047284,600.0,0.00027397,120]
[370397498,1751996047388,600.0,0.00027397,120]
[370397499,1751996047655,600.0,0.00027397,120]
[370397500,1751996047715,600.0,0.00027397,120]
[370397501,1751996047877,600.0,0.00027397,120]
[370397502,1751996048149,600.0,0.00027397,120]
[370397503,1751996048392,600.0,0.00027397,120]
[370397504,1751996049003,605.965117,0.00027397,120]
[370397508,1751996221296,178.24,0.0002637,120]
[370397509,1751996221520,178.24,0.000293,120]
[370397510,1751996297667,155.0,0.0003013,120]
[370397511,1751996308314,150.5,0.00026017,120]
[370397512,1751996308769,150.5,0.00026007,120]
[370397513,1751996309213,150.5,0.00025997,120]
[370397514,1751996309663,209.68,0.00026565,120]
[370397515,1751996312500,160.0,0.0003013,120]
[370397516,1751996322857,2628.26890923,0.0003,120]
[370397517,1751996333193,180.0,0.0003013,120]
[370397518,1751996342646,779.2703,0.0003,120]
[370397519,1751996358577,160.0,0.0003013,120]
[370397520,1751996367923,160.0,0.0003013,120]
[370397524,1751996489606,200.0,0.0002952,120]
[370397527,1751996591581,428.77330021,0.00029041,120]
[370397530,1751996642576,1345.39599374,0.00030137,120]
[370397535,1751996981446,161.21,0.00013699,2]
[370397536,1751997003012,199848.0,0.00030136,120]
[370397537,1751997007854,150.0,1e-08,2]
[370397540,1751997031682,-150.0,0.00018,30]
[370397541,1751997031692,-150.0,0.00018,30]
[370397542,1751997031702,-300.0,0.000209,2]
[370397543,1751997031712,-133.59699346,0.000209,5]
[370397544,1751997031785,-1000.22049843,0.000209,5]
[370397545,1751997031797,-866.18250811,0.000209,5]
[370397546,1751997031806,-187.49816277,0.000219,2]
[370397547,1751997031815,-151.39,0.00021918,2]
[370397548,1751997031824,-31.0140407,0.00021994,2]
[370397549,1751997031876,-132.8459593,0.00021994,2]
[370397550,1751997031885,-150.0,0.00022,2]
[370397551,1751997031894,-500.0,0.00022027,2]
[370397552,1751997031903,-1217.1540407,0.00022033,2]
[370397553,1751997031915,-1441.0459593,0.00022033,2]
[370397554,1751997031924,-188.28,0.00022058,2]
[370397555,1751997031934,-200.0,0.0002207,2]
[370397556,1751997031943,-966.93,0.00022081,2]
[370397557,1751997031952,-1200.0,0.00022412,2]
[370397558,1751997031963,-1200.0,0.00022413,2]
[370397559,1751997031972,-150.0,0.00022414,2]
[370397560,1751997031983,-150.0,0.00022414,2]
[370397561,1751997031992,-150.0,0.00022414,2]
[370397562,1751997032002,-150.0,0.00022414,2]
[370397563,1751997032011,-150.0,0.00022414,2]
[370397564,1751997032020,-150.0,0.00022414,2]
[370397565,1751997032029,-150.0,0.00022414,2]
[370397566,1751997032038,-151.65819517,0.00022414,2]
[370397567,1751997032048,-150.42894073,0.00022414,2]
[370397568,1751997032057,-150.0,0.00022414,2]
[370397570,1751997032067,-150.0,0.00022457,4]
[370397572,1751997032076,-150.0,0.0002247,2]
[370397574,1751997032086,-150.0,0.0002249,4]
[370397575,1751997032095,-200.0,0.00022492,2]
[370397576,1751997032104,-150.0,0.000225,4]
[370397577,1751997032113,-150.0,0.00022529,4]
[370397579,1751997032122,-150.0,0.00022543,4]
[370397581,1751997032131,-150.0,0.00022567,4]
[370397583,1751997032141,-150.0,0.00022569,4]
[370397586,1751997032150,-150.0,0.00022585,4]
[370397588,1751997032159,-150.0,0.00022605,4]
[370397590,1751997032168,-150.0,0.00022628,4]
[370397592,1751997032177,-150.0,0.00022644,4]
[370397594,1751997032186,-150.0,0.00022671,4]
[370397596,1751997032195,-150.0,0.00022682,4]
[370397599,1751997032205,-150.0,0.0002269,4]
[370397603,1751997032216,-150.0,0.00022714,4]
[370397605,1751997032225,-150.0,0.0002272,4]
[370397608,1751997032234,-150.0,0.00022725,4]
[370397611,1751997032243,-150.0,0.00022757,4]
[370397613,1751997032252,-150.0,0.00022759,4]
[370397615,1751997032261,-150.0,0.00022797,4]
[370397617,1751997032270,-150.0,0.000228,4]
[370397619,1751997032279,-150.0,0.00022835,4]
[370397621,1751997032292,-150.0,0.00022843,4]
[370397623,1751997032301,-151.39,0.00022844,2]
[370397625,1751997032310,-150.0,0.00022873,4]
[370397627,1751997032319,-150.0,0.00022881,4]
[370397629,1751997032330,-150.0,0.00022886,4]
[370397631,1751997032339,-1319.96926738,0.000229,8]
[370397633,1751997032349,-150.0,0.00022912,4]
[370397635,1751997032359,-150.0,0.00022929,4]
[370397637,1751997032370,-150.0,0.0002294,2]
[370397639,1751997032379,-150.0,0.0002295,4]
[370397641,1751997032388,-500.0,0.00022961,2]
[370397643,1751997032397,-150.0,0.00022967,4]
[370397645,1751997032406,-150.0,0.00022972,4]
[370397647,1751997032414,-250.0,0.00022986,2]
[370397649,1751997032424,-1416.0,0.00022987,2]
[370397651,1751997032433,-150.0,0.00022988,4]
[370397653,1751997032443,-150.0,0.00023015,4]
[370397655,1751997032452,-150.0,0.00023027,4]
[370397657,1751997032463,-150.0,0.00023036,4]
[370397659,1751997032472,-1804.18,0.00023049,7]
[370397661,1751997032482,-150.0,0.00023058,4]
[370397663,1751997032491,-150.0,0.00023065,4]
[370397665,1751997032500,-1000.0,0.00023065,2]
[370397667,1751997032510,-150.0,0.00023101,4]
[370397669,1751997032519,-150.0,0.00023103,4]
[370397671,1751997032528,-200.0,0.00023131,7]
[370397673,1751997032537,-1319.96926711,0.00023141,8]
[370397675,1751997032547,-150.0,0.00023142,4]
[370397677,1751997032556,-150.0,0.00023144,4]
[370397709,1751997032751,-1500.0,0.0002317,2]
[370397715,1751997032795,-207.4,0.00023176,2]
[370397717,1751997032804,-4031.856,0.00023176,2]
[370397719,1751997032813,-500.0,0.00023176,2]
[370397721,1751997032822,-500.0,0.00023176,2]
[370397723,1751997032831,-500.0,0.00023176,2]
[370397725,1751997032840,-500.0,0.00023176,2]
[370397727,1751997032848,-500.0,0.00023176,2]
[370397729,1751997032857,-200.0,0.00023176,2]
[370397731,1751997032866,-500.0,0.00023176,2]
[370397733,1751997032875,-500.0,0.00023176,2]
[370397735,1751997032884,-500.0,0.00023176,2]
[370397737,1751997032895,-500.0,0.00023176,2]
[370397739,1751997032904,-154.47554048,0.00023176,2]
[370397741,1751997032914,-151.0,0.00023176,2]
[370397743,1751997032922,-160.0,0.00023176,2]
[370397745,1751997032932,-198.60622242,0.00023176,2]
[370397747,1751997032941,-743.50246321,0.00023176,2]
[370397749,1751997032951,-151.0,0.00023176,2]
[370397751,1751997032961,-151.0,0.00023176,2]
[370397753,1751997032971,-151.0,0.00023176,2]
[370397755,1751997032980,-151.0,0.00023176,2]
[370397757,1751997032989,-151.0,0.00023176,2]
[370397759,1751997032999,-151.0,0.00023176,2]
[370397761,1751997033009,-151.0,0.00023176,2]
[370397763,1751997033018,-300.0,0.00023176,2]
[370397765,1751997033028,-151.0,0.00023176,2]
[370397767,1751997033037,-300.0,0.00023176,2]
[370397769,1751997033046,-151.0,0.00023176,2]
[370397771,1751997033055,-300.0,0.00023176,2]
[370397773,1751997033065,-151.0,0.00023176,2]
[370397775,1751997033074,-151.0,0.00023176,2]
[370397777,1751997033084,-300.0,0.00023176,2]
[370397779,1751997033094,-151.0,0.00023176,2]
[370397781,1751997033103,-64.32876572,0.00023176,2]
[370397783,1751997033116,-235.67123428,0.00023176,2]
[370397785,1751997033127,-300.0,0.00023176,2]
[370397787,1751997033137,-151.0,0.00023176,2]
[370397789,1751997033147,-300.0,0.00023176,2]
[370397791,1751997033156,-151.0,0.00023176,2]
[370397793,1751997033165,-399.999999,0.00023176,2]
[370397795,1751997033175,-300.0,0.00023176,2]
[370397797,1751997033184,-151.0,0.00023176,2]
[370397799,1751997033194,-300.0,0.00023176,2]
[370397801,1751997033203,-151.0,0.00023176,2]
[370397803,1751997033213,-300.0,0.00023176,2]
[370397805,1751997033222,-151.0,0.00023176,2]
[370397807,1751997033231,-200.0,0.00023176,2]
[370397809,1751997033240,-151.0,0.00023176,2]
[370397811,1751997033249,-151.0,0.00023176,2]
[370397813,1751997033259,-300.0,0.00023176,2]
[370397815,1751997033268,-300.0,0.00023176,2]
[370397817,1751997033277,-300.0,0.00023176,2]
[370397819,1751997033289,-300.0,0.00023176,2]
[370397821,1751997033299,-300.0,0.00023176,2]
[370397823,1751997033308,-151.0,0.00023176,2]
[370397825,1751997033317,-300.0,0.00023176,2]
[370397827,1751997033327,-151.0,0.00023176,2]
[370397829,1751997033337,-300.0,0.00023176,2]
[370397831,1751997033346,-151.0,0.00023176,2]
[370397833,1751997033355,-300.0,0.00023176,2]
[370397835,1751997033368,-151.0,0.00023176,2]
[370397837,1751997033379,-300.0,0.00023176,2]
[370397839,1751997033389,-151.0,0.00023176,2]
[370397841,1751997033398,-300.0,0.00023176,2]
[370397843,1751997033408,-294.0,0.00023176,2]
[370397845,1751997033418,-2751.0,0.00023179,2]
[370397847,1751997033427,-150.0,0.0002318,4]
[370397849,1751997033436,-150.0,0.00023187,4]
[370397851,1751997033448,-5799.55256971,0.0002319,2]
[370397863,1751997033548,-18100.44743029,0.0002319,2]
[370397865,1751997033558,-150.0,0.00023192,4]
[370397866,1751997033568,-1030.52,0.0002321,2]
[370397868,1751997033578,-150.0,0.00023218,4]
[370397870,1751997033587,-150.0,0.0002323,4]
[370397872,1751997033596,-4156.09750952,0.00023231,2]
[370397874,1751997033607,-24.93716248,0.00023231,2]
[370397876,1751997033617,-150.0,0.00023244,4]
[370397878,1751997033626,-150.0,0.00023257,4]
[370397880,1751997033636,-141.86868463,0.00023272,4]
[370397885,1751997033677,-8.13131537,0.00023272,4]
[370397887,1751997033687,-150.0,0.00023272,4]
[370397889,1751997033696,-4335.73295486,0.00023286,2]
[370397891,1751997033706,-150.0,0.00023295,4]
[370397893,1751997033716,-150.0,0.00023315,4]
[370397895,1751997033726,-150.0,0.00023333,4]
[370397897,1751997033737,-4496.15507419,0.00023341,2]
[370397899,1751997033746,-150.0,0.00023348,4]
[370397901,1751997033756,-271.13,0.00023349,2]
[370397903,1751997033765,-150.0,0.00023358,4]
[370397905,1751997033774,-150.0,0.00023358,4]
[370397907,1751997033783,-150.0,0.00023372,4]
[370397909,1751997033793,-506.07422038,0.00023383,9]
[370398328,1751997037948,-160.4,0.0002274,2]
[370398330,1751997037958,-160.4,0.00022762,2]
[370398332,1751997037968,-160.4,0.00022785,2]
[370398334,1751997037978,-160.4,0.00022808,2]
[370398336,1751997037987,-160.4,0.00022831,2]
[370398338,1751997037996,-160.4,0.00022853,2]
[370398341,1751997038008,-160.4,0.00022876,2]
[370398343,1751997038017,-160.4,0.00022899,2]
[370398345,1751997038026,-813.89504673,0.00023383,9]
[370398347,1751997038035,-323.54772608,0.00023396,2]
[370398349,1751997038044,-150.0,0.00023401,4]
[370398351,1751997038054,-1042.94,0.00023405,2]
[370398353,1751997038063,-150.0,0.0002341,4]
[370398355,1751997038073,-150.0,0.0002341,2]
[370398357,1751997038082,-178.24,0.0002344,2]
[370398359,1751997038091,-150.0,0.00023444,4]
[370398361,1751997038100,-150.0,0.00023448,4]
[370398363,1751997038109,-493.44093816,0.00023457,2]
[370398365,1751997038118,-150.0,0.00023486,4]
[370398367,1751997038128,-150.0,0.00023487,4]
[370398369,1751997038138,-150.0,0.00023503,4]
[370398371,1751997038151,-832.25,0.00023512,2]
[370398373,1751997038162,-150.0,0.00023521,4]
[370398375,1751997038171,-150.0,0.00023521,4]
[370398377,1751997038181,-150.0,0.00023525,4]
[370398379,1751997038190,-150.0,0.0002353,4]
[370398381,1751997038199,-150.0,0.0002353,4]
[370398383,1751997038208,-150.0,0.00023563,4]
[370398385,1751997038218,-150.0,0.00023573,4]
[370398387,1751997038227,-150.0,0.00023597,2]
[370398389,1751997038237,-150.0,0.00023601,4]
[370398391,1751997038246,-150.0,0.00023616,4]
[370398393,1751997038255,-150.0,0.00023616,4]
[370398395,1751997038265,-830.04158572,0.00023624,9]
[370398398,1751997038277,-448.33861868,0.00023624,9]
[370398401,1751997038305,-41.58906271,0.00023624,9]
[370398403,1751997038314,-150.0,0.0002364,4]
[370398405,1751997038326,-150.0,0.00023659,4]
[370398407,1751997038336,-150.0,0.00023659,4]
[370398409,1751997038346,-150.0,0.00023659,4]
[370398411,1751997038356,-666.0,0.00023666,2]
[370398413,1751997038367,-150.0,0.00023678,4]
[370398415,1751997038376,-425.20543629,0.00023699,2]
[370398419,1751997038403,-374.91456371,0.00023699,2]
[370398421,1751997038412,-109.29582958,0.00023702,4]
[370398424,1751997038424,-40.70417042,0.00023702,4]
[370398426,1751997038434,-150.0,0.00023702,4]
[370398428,1751997038443,-150.0,0.00023716,4]
[370398430,1751997038453,-13.5530857,0.00023724,2]
[370398574,1751997039922,-160.4,0.00022922,2]
[370398576,1751997039932,-160.4,0.00022944,2]
[370398578,1751997039941,-160.4,0.00022967,2]
[370398580,1751997039951,-137.4469143,0.00023724,2]
[370398582,1751997039960,-150.0,0.00023728,4]
[370398584,1751997039971,-168.97,0.00023729,2]
[370398586,1751997039981,-150.0,0.00023745,4]
[370398588,1751997039990,-2.3741789,0.00023755,4]
[370398590,1751997040001,-147.6258211,0.00023755,4]
[370398592,1751997040011,-151.39,0.0002377,2]
[370398594,1751997040020,-150.0,0.00023788,4]
[370398596,1751997040029,-150.0,0.00023788,4]
[370398598,1751997040038,-150.0,0.00023793,4]
[370398600,1751997040047,-150.0,0.00023797,4]
[370398602,1751997040058,-150.0,0.00023797,4]
[370398605,1751997040068,-150.0,0.00023815,4]
[370398607,1751997040078,-150.0,0.00023831,4]
[370398609,1751997040087,-150.0,0.00023831,4]
[370398611,1751997040097,-353.23,0.00023836,2]
[370398613,1751997040107,-1319.96926711,0.00023866,10]
[370398615,1751997040116,-150.0,0.00023866,4]
[370398617,1751997040125,-150.0,0.0002387,4]
[370398619,1751997040135,-150.0,0.00023874,4]
[370398621,1751997040145,-150.0,0.00023874,4]
[370398623,1751997040154,-150.0,0.0002388,2]
[370398625,1751997040164,-150.0,0.00023908,4]
[370398627,1751997040173,-150.0,0.00023917,4]
[370398629,1751997040183,-150.0,0.00023936,4]
[370398631,1751997040192,-150.0,0.00023946,4]
[370398633,1751997040202,-150.0,0.00023959,4]
[370398635,1751997040212,-150.0,0.00023959,4]
[370398637,1751997040222,-150.0,0.0002397,4]
[370398639,1751997040231,-150.0,0.00023985,4]
[370398641,1751997040240,-150.0,0.00024002,4]
[370398643,1751997040250,-150.0,0.00024005,4]
[370398645,1751997040259,-150.0,0.00024023,4]
[370398647,1751997040268,-150.0,0.00024045,4]
[370398649,1751997040278,-150.0,0.00024045,4]
[370398651,1751997040292,-150.0,0.00024061,4]
[370398653,1751997040304,-150.0,0.00024074,4]
[370398655,1751997040314,-150.0,0.00024074,4]
[370398657,1751997040323,-150.0,0.00024088,4]
[370398659,1751997040335,-150.0,0.000241,4]
[370398661,1751997040344,-2000.0,0.000241,2]
[370398663,1751997040355,-1319.96926711,0.00024107,10]
[370398665,1751997040366,-150.0,0.00024126,4]
[370398667,1751997040375,-150.0,0.00024131,4]
[370398669,1751997040384,-150.0,0.00024131,4]
[370398671,1751997040394,-150.0,0.00024138,4]
[370398673,1751997040404,-654.06706,0.00024163,4]
[370398675,1751997040414,-150.0,0.00024174,4]